[Event "Titled Tuesday Blitz March 01 Early 2022"]
[White "Sadhwani, Raunak"]
[Black "Lazavik, Denis"]
[WhiteFideId "35093487"]
[BlackFideId "13515110"]
[WhiteElo "2616"]
[BlackElo "2436"]
[Result "0-1"]
[Round "11"]
[TimeControl "180+1"]
[Date "2022.03.01"]
[WhiteClock "0:00:03"]
[BlackClock "0:00:06"]

1. d4 {[%clk 0:03:00]}  d5 {[%clk 0:03:00]} 2. Nf3 {[%clk 0:03:00]}  Nf6 {[%clk 0:03:00]} 3. Bf4 {[%clk 0:03:01]}  c5 {[%clk 0:03:00]} 4. e3 {[%clk 0:03:01]}  Nc6 {[%clk 0:03:00]} 5. Nbd2 {[%clk 0:03:01]}  Bg4 {[%clk 0:03:00]} 6. c3 {[%clk 0:02:57]}  e6 {[%clk 0:02:59]} 7. Qb3 {[%clk 0:02:57]}  Qc8 {[%clk 0:02:56]} 8. h3 {[%clk 0:02:57]}  Bh5 {[%clk 0:02:56]} 9. Nh4 {[%clk 0:02:57]}  Be7 {[%clk 0:02:51]} 10. g4 {[%clk 0:02:55]}  Bg6 {[%clk 0:02:51]} 11. Nxg6 {[%clk 0:02:55]}  hxg6 {[%clk 0:02:52]} 12. Bg2 {[%clk 0:02:55]}  cxd4 {[%clk 0:02:43]} 13. exd4 {[%clk 0:02:47]}  Qd7 {[%clk 0:02:42]} 14. O-O {[%clk 0:02:46]}  Bd6 {[%clk 0:02:42]} 15. Bxd6 {[%clk 0:02:25]}  Qxd6 {[%clk 0:02:43]} 16. f4 {[%clk 0:02:24]}  O-O {[%clk 0:02:39]} 17. a4 {[%clk 0:02:20]}  a6 {[%clk 0:02:35]} 18. a5 {[%clk 0:02:14]}  Qc7 {[%clk 0:02:29]} 19. Qa3 {[%clk 0:02:11]}  Rac8 {[%clk 0:02:23]} 20. Rf2 {[%clk 0:02:04]}  Ne8 {[%clk 0:02:10]} 21. f5 {[%clk 0:01:47]}  gxf5 {[%clk 0:01:54]} 22. gxf5 {[%clk 0:01:48]}  Nd6 {[%clk 0:01:55]} 23. fxe6 {[%clk 0:01:36]}  fxe6 {[%clk 0:01:56]} 24. Raf1 {[%clk 0:01:22]}  Rxf2 {[%clk 0:01:51]} 25. Rxf2 {[%clk 0:01:23]}  Nxa5 {[%clk 0:01:26]} 26. Qa1 {[%clk 0:01:20]}  Rf8 {[%clk 0:01:14]} 27. Rxf8+ {[%clk 0:01:16]}  Kxf8 {[%clk 0:01:15]} 28. Qe1 {[%clk 0:01:17]}  Qe7 {[%clk 0:01:10]} 29. Nf3 {[%clk 0:01:17]}  Nc6 {[%clk 0:01:10]} 30. Nh2 {[%clk 0:01:00]}  Nf5 {[%clk 0:01:07]} 31. Ng4 {[%clk 0:01:00]}  Qd6 {[%clk 0:01:04]} 32. Qe2 {[%clk 0:00:45]}  Ke7 {[%clk 0:01:00]} 33. Qd2 {[%clk 0:00:44]}  Kd7 {[%clk 0:00:58]} 34. Qg5 {[%clk 0:00:34]}  Qg3 {[%clk 0:00:47]} 35. Kh1 {[%clk 0:00:29]}  Kc7 {[%clk 0:00:42]} 36. Qd2 {[%clk 0:00:23]}  Nh4 {[%clk 0:00:32]} 37. Bf1 {[%clk 0:00:19]}  Nf3 {[%clk 0:00:27]} 38. Qe3 {[%clk 0:00:16]}  e5 {[%clk 0:00:12]} 39. Bg2 {[%clk 0:00:07]}  e4 {[%clk 0:00:11]} 40. Bxf3 {[%clk 0:00:03]}  Qxh3+ {[%clk 0:00:08]} 41. Nh2 {[%clk 0:00:03]}  exf3 {[%clk 0:00:08]} 42. Qxf3 {[%clk 0:00:03]}  Qxf3+ {[%clk 0:00:08]} 43. Nxf3 {[%clk 0:00:04]}  Kd6 {[%clk 0:00:08]} 44. Kg2 {[%clk 0:00:04]}  a5 {[%clk 0:00:09]} 45. Kf2 {[%clk 0:00:05]}  a4 {[%clk 0:00:09]} 46. Ke3 {[%clk 0:00:05]}  Na5 {[%clk 0:00:09]} 47. Kd3 {[%clk 0:00:04]}  Ke6 {[%clk 0:00:07]} 48. Nd2 {[%clk 0:00:04]}  Kf5 {[%clk 0:00:06]} 49. Nf1 {[%clk 0:00:04]}  g5 {[%clk 0:00:06]} 50. Ne3+ {[%clk 0:00:04]}  Ke6 {[%clk 0:00:06]} 51. Ke2 {[%clk 0:00:02]}  b5 {[%clk 0:00:06]} 52. Kd3 {[%clk 0:00:02]}  Nc4 {[%clk 0:00:06]} 53. Nd1 {[%clk 0:00:03]}  g4 {[%clk 0:00:06]} 54. Ke2 {[%clk 0:00:02]}  Kf5 {[%clk 0:00:06]} 55. Kd3 {[%clk 0:00:02]}  Kf4 {[%clk 0:00:06]} 56. Ke2 {[%clk 0:00:03]}  g3 {[%clk 0:00:06]} 0-1


[Site "https://www.chess.com"]

[Event "Titled Tuesday Blitz March 01 Early 2022"]
[White "Sarkar, Justin"]
[Black "Derraugh, Geordie"]
[WhiteFideId "2010011"]
[BlackFideId "2603950"]
[WhiteElo "2038"]
[BlackElo "2116"]
[Result "1/2-1/2"]
[Round "11"]
[TimeControl "180+1"]
[Date "2022.03.01"]
[WhiteClock "0:00:02"]
[BlackClock "0:00:02"]

1. e4 {[%clk 0:02:51]}  c5 {[%clk 0:02:59]} 2. Nf3 {[%clk 0:02:50]}  d6 {[%clk 0:03:00]} 3. d4 {[%clk 0:02:48]}  cxd4 {[%clk 0:03:00]} 4. Nxd4 {[%clk 0:02:48]}  Nf6 {[%clk 0:03:01]} 5. Nc3 {[%clk 0:02:48]}  a6 {[%clk 0:03:01]} 6. Bg5 {[%clk 0:02:48]}  e6 {[%clk 0:03:01]} 7. Qd3 {[%clk 0:02:47]}  Qc7 {[%clk 0:03:00]} 8. Be2 {[%clk 0:02:26]}  Nbd7 {[%clk 0:02:58]} 9. f4 {[%clk 0:02:22]}  b5 {[%clk 0:02:54]} 10. O-O-O {[%clk 0:01:58]}  Nc5 {[%clk 0:02:53]} 11. Qe3 {[%clk 0:01:50]}  b4 {[%clk 0:02:44]} 12. e5 {[%clk 0:01:38]}  bxc3 {[%clk 0:02:35]} 13. exf6 {[%clk 0:01:36]}  cxb2+ {[%clk 0:02:33]} 14. Kb1 {[%clk 0:01:25]}  Bb7 {[%clk 0:01:53]} 15. fxg7 {[%clk 0:01:13]}  Bxg7 {[%clk 0:01:52]} 16. Nf5 {[%clk 0:01:10]}  Bf8 {[%clk 0:01:19]} 17. Qd4 {[%clk 0:01:02]}  exf5 {[%clk 0:01:12]} 18. Qxh8 {[%clk 0:01:00]}  Na4 {[%clk 0:01:01]} 19. Bf6 {[%clk 0:00:37]}  Be4 {[%clk 0:00:25]} 20. Bd3 {[%clk 0:00:35]}  Nc5 {[%clk 0:00:26]} 21. Rhe1 {[%clk 0:00:28]}  Rc8 {[%clk 0:00:17]} 22. Bxb2 {[%clk 0:00:24]}  Kd7 {[%clk 0:00:12]} 23. Qf6 {[%clk 0:00:18]}  Be7 {[%clk 0:00:05]} 24. Qxf7 {[%clk 0:00:16]}  Rb8 {[%clk 0:00:05]} 25. Bxe4 {[%clk 0:00:13]}  fxe4 {[%clk 0:00:05]} 26. Qf5+ {[%clk 0:00:11]}  Ke8 {[%clk 0:00:03]} 27. Qh5+ {[%clk 0:00:08]}  Kd8 {[%clk 0:00:03]} 28. Ka1 {[%clk 0:00:04]}  Qb6 {[%clk 0:00:01]} 29. Rb1 {[%clk 0:00:04]}  Qc6 {[%clk 0:00:02]} 30. Bc3 {[%clk 0:00:04]}  Rxb1+ {[%clk 0:00:02]} 31. Rxb1 {[%clk 0:00:03]}  Na4 {[%clk 0:00:03]} 32. Bb2 {[%clk 0:00:03]}  Qxc2 {[%clk 0:00:03]} 33. Qxh7 {[%clk 0:00:03]}  Nxb2 {[%clk 0:00:03]} 34. Qg8+ {[%clk 0:00:03]}  Kd7 {[%clk 0:00:02]} 35. Qg4+ {[%clk 0:00:02]}  Kd8 {[%clk 0:00:02]} 36. Qg8+ {[%clk 0:00:02]}  Kc7 {[%clk 0:00:03]} 37. Qe6 {[%clk 0:00:02]}  Kd8 {[%clk 0:00:02]} 38. Qg8+ {[%clk 0:00:02]} 1/2-1/2


[Site "https://www.chess.com"]

[Event "Titled Tuesday Blitz March 01 Early 2022"]
[White "Selkirk, Rebecca"]
[Black "Yushko, Olga"]
[WhiteFideId "14306514"]
[BlackFideId "14114500"]
[WhiteElo "1649"]
[BlackElo "2028"]
[Result "0-1"]
[Round "11"]
[TimeControl "180+1"]
[Date "2022.03.01"]
[WhiteClock "0:01:20"]
[BlackClock "0:01:18"]

1. e4 {[%clk 0:03:00]}  d6 {[%clk 0:02:59]} 2. d3 {[%clk 0:03:00]}  e5 {[%clk 0:02:56]} 3. Nc3 {[%clk 0:03:00]}  f5 {[%clk 0:02:56]} 4. Nf3 {[%clk 0:02:53]}  Nf6 {[%clk 0:02:56]} 5. Bg5 {[%clk 0:02:51]}  Be7 {[%clk 0:02:56]} 6. Be2 {[%clk 0:02:51]}  O-O {[%clk 0:02:50]} 7. exf5 {[%clk 0:02:51]}  Bxf5 {[%clk 0:02:49]} 8. Qd2 {[%clk 0:02:51]}  Nc6 {[%clk 0:02:48]} 9. O-O-O {[%clk 0:02:50]}  Qe8 {[%clk 0:02:45]} 10. Nh4 {[%clk 0:02:50]}  Be6 {[%clk 0:02:44]} 11. f3 {[%clk 0:02:47]}  Nd4 {[%clk 0:02:44]} 12. g4 {[%clk 0:02:45]}  Nxe2+ {[%clk 0:02:42]} 13. Qxe2 {[%clk 0:02:45]}  h6 {[%clk 0:02:42]} 14. Bd2 {[%clk 0:02:42]}  Nxg4 {[%clk 0:02:41]} 15. fxg4 {[%clk 0:02:41]}  Bxh4 {[%clk 0:02:41]} 16. g5 {[%clk 0:02:39]}  Bxg5 {[%clk 0:02:37]} 17. Bxg5 {[%clk 0:02:37]}  hxg5 {[%clk 0:02:38]} 18. Rdg1 {[%clk 0:02:35]}  g4 {[%clk 0:02:37]} 19. Ne4 {[%clk 0:02:35]}  Qh5 {[%clk 0:02:34]} 20. h3 {[%clk 0:02:34]}  Qh6+ {[%clk 0:02:32]} 21. Kb1 {[%clk 0:02:34]}  gxh3 {[%clk 0:02:32]} 22. Rg3 {[%clk 0:02:27]}  Rf7 {[%clk 0:02:30]} 23. Ng5 {[%clk 0:02:22]}  Rf6 {[%clk 0:02:30]} 24. Nxe6 {[%clk 0:02:22]}  Rxe6 {[%clk 0:02:30]} 25. Rgxh3 {[%clk 0:02:22]}  Qg5 {[%clk 0:02:14]} 26. Rh8+ {[%clk 0:02:20]}  Kf7 {[%clk 0:02:15]} 27. Rf1+ {[%clk 0:02:14]}  Rf6 {[%clk 0:02:08]} 28. Rxa8 {[%clk 0:02:14]}  Ke7 {[%clk 0:02:05]} 29. Rxf6 {[%clk 0:02:12]}  gxf6 {[%clk 0:02:05]} 30. a3 {[%clk 0:02:13]}  c6 {[%clk 0:02:00]} 31. Rxa7 {[%clk 0:02:13]}  Qg1+ {[%clk 0:02:00]} 32. Ka2 {[%clk 0:02:12]}  Qxa7 {[%clk 0:02:01]} 33. Qh5 {[%clk 0:02:12]}  Qb6 {[%clk 0:01:56]} 34. Qh7+ {[%clk 0:02:12]}  Ke6 {[%clk 0:01:56]} 35. Qg8+ {[%clk 0:02:12]}  Kf5 {[%clk 0:01:56]} 36. Qh7+ {[%clk 0:02:11]}  Kf4 {[%clk 0:01:55]} 37. Qe4+ {[%clk 0:02:11]}  Kg5 {[%clk 0:01:55]} 38. Qg2+ {[%clk 0:02:10]}  Kf5 {[%clk 0:01:54]} 39. Qf3+ {[%clk 0:02:10]}  Ke6 {[%clk 0:01:54]} 40. Qg4+ {[%clk 0:02:08]}  Ke7 {[%clk 0:01:50]} 41. Qg7+ {[%clk 0:02:08]}  Ke6 {[%clk 0:01:51]} 42. Qg4+ {[%clk 0:02:07]}  Kf7 {[%clk 0:01:46]} 43. Qd7+ {[%clk 0:02:05]}  Kg6 {[%clk 0:01:41]} 44. Qg4+ {[%clk 0:02:01]}  Kh6 {[%clk 0:01:40]} 45. Qh4+ {[%clk 0:02:00]}  Kg7 {[%clk 0:01:40]} 46. Qg4+ {[%clk 0:02:00]}  Kf8 {[%clk 0:01:40]} 47. Qc8+ {[%clk 0:01:58]}  Ke7 {[%clk 0:01:40]} 48. Qg8 {[%clk 0:01:53]}  f5 {[%clk 0:01:27]} 49. Qg7+ {[%clk 0:01:50]}  Kd8 {[%clk 0:01:24]} 50. Qf6+ {[%clk 0:01:50]}  Kc7 {[%clk 0:01:24]} 51. Qxf5 {[%clk 0:01:50]}  Qc5 {[%clk 0:01:24]} 52. Qf7+ {[%clk 0:01:49]}  Kb6 {[%clk 0:01:24]} 53. Qb3+ {[%clk 0:01:49]}  Ka7 {[%clk 0:01:24]} 54. Qa4+ {[%clk 0:01:48]}  Kb8 {[%clk 0:01:24]} 55. Qb3 {[%clk 0:01:48]}  d5 {[%clk 0:01:24]} 56. Kb1 {[%clk 0:01:44]}  Qg1+ {[%clk 0:01:23]} 57. Ka2 {[%clk 0:01:44]}  Qd4 {[%clk 0:01:24]} 58. Kb1 {[%clk 0:01:44]}  Kc7 {[%clk 0:01:23]} 59. Qb4 {[%clk 0:01:42]}  Qxb4 {[%clk 0:01:20]} 60. axb4 {[%clk 0:01:43]}  Kb6 {[%clk 0:01:20]} 61. Kc1 {[%clk 0:01:43]}  Kb5 {[%clk 0:01:21]} 62. c3 {[%clk 0:01:43]}  Ka4 {[%clk 0:01:21]} 63. Kc2 {[%clk 0:01:43]}  e4 {[%clk 0:01:21]} 64. d4 {[%clk 0:01:34]}  e3 {[%clk 0:01:21]} 65. Kd3 {[%clk 0:01:23]}  Kb3 {[%clk 0:01:20]} 66. Kxe3 {[%clk 0:01:21]}  Kxb2 {[%clk 0:01:20]} 67. c4 {[%clk 0:01:20]}  dxc4 {[%clk 0:01:20]} 68. b5 {[%clk 0:01:21]}  c3 {[%clk 0:01:19]} 69. bxc6 {[%clk 0:01:20]}  bxc6 {[%clk 0:01:20]} 70. Ke4 {[%clk 0:01:19]}  c2 {[%clk 0:01:20]} 71. Ke5 {[%clk 0:01:19]}  c1=Q {[%clk 0:01:20]} 72. Kd6 {[%clk 0:01:20]}  Qc4 {[%clk 0:01:18]} 0-1


[Site "https://www.chess.com"]

[Event "Titled Tuesday Blitz March 01 Early 2022"]
[White "Shubenkova, Veronika"]
[Black "Yang, Kaiqi"]
[WhiteFideId "44124040"]
[BlackFideId "8604398"]
[WhiteElo "1938"]
[BlackElo "2373"]
[Result "0-1"]
[Round "11"]
[TimeControl "180+1"]
[Date "2022.03.01"]
[WhiteClock "0:00:03"]
[BlackClock "0:00:12"]

1. e4 {[%clk 0:02:57]}  c5 {[%clk 0:02:59]} 2. Nc3 {[%clk 0:02:55]}  Nc6 {[%clk 0:02:56]} 3. g3 {[%clk 0:02:53]}  g6 {[%clk 0:02:56]} 4. Bg2 {[%clk 0:02:53]}  Bg7 {[%clk 0:02:57]} 5. d3 {[%clk 0:02:49]}  e6 {[%clk 0:02:57]} 6. f4 {[%clk 0:02:48]}  Nge7 {[%clk 0:02:57]} 7. Nf3 {[%clk 0:02:47]}  d5 {[%clk 0:02:53]} 8. e5 {[%clk 0:02:45]}  b6 {[%clk 0:02:51]} 9. O-O {[%clk 0:02:45]}  Bb7 {[%clk 0:02:51]} 10. Qe2 {[%clk 0:02:44]}  O-O {[%clk 0:02:47]} 11. Nb5 {[%clk 0:02:42]}  Ba6 {[%clk 0:02:45]} 12. Nd6 {[%clk 0:02:42]}  Nc8 {[%clk 0:02:45]} 13. Nxc8 {[%clk 0:02:39]}  Rxc8 {[%clk 0:02:44]} 14. c3 {[%clk 0:02:37]}  b5 {[%clk 0:02:38]} 15. a3 {[%clk 0:02:31]}  Bb7 {[%clk 0:02:28]} 16. Be3 {[%clk 0:02:26]}  d4 {[%clk 0:02:21]} 17. Bf2 {[%clk 0:02:26]}  dxc3 {[%clk 0:02:17]} 18. bxc3 {[%clk 0:02:25]}  Ne7 {[%clk 0:02:14]} 19. d4 {[%clk 0:02:23]}  c4 {[%clk 0:02:11]} 20. Rfb1 {[%clk 0:02:10]}  Qd7 {[%clk 0:02:06]} 21. Qc2 {[%clk 0:02:06]}  Bd5 {[%clk 0:01:57]} 22. Nd2 {[%clk 0:01:57]}  Bxg2 {[%clk 0:01:55]} 23. Kxg2 {[%clk 0:01:58]}  a6 {[%clk 0:01:46]} 24. Ne4 {[%clk 0:01:56]}  Qd5 {[%clk 0:01:46]} 25. Kg1 {[%clk 0:01:54]}  Rfd8 {[%clk 0:01:44]} 26. a4 {[%clk 0:01:50]}  Rb8 {[%clk 0:01:40]} 27. Nc5 {[%clk 0:01:48]}  Rb6 {[%clk 0:01:31]} 28. axb5 {[%clk 0:01:44]}  axb5 {[%clk 0:01:32]} 29. Ra5 {[%clk 0:01:43]}  Rdb8 {[%clk 0:01:32]} 30. Ra7 {[%clk 0:01:36]}  Nc6 {[%clk 0:01:14]} 31. Rc7 {[%clk 0:01:33]}  b4 {[%clk 0:01:07]} 32. Nd7 {[%clk 0:01:32]}  b3 {[%clk 0:00:59]} 33. Qe2 {[%clk 0:01:30]}  R6b7 {[%clk 0:00:54]} 34. Rxb7 {[%clk 0:01:20]}  Rxb7 {[%clk 0:00:53]} 35. Nc5 {[%clk 0:01:20]}  Ra7 {[%clk 0:00:53]} 36. Qe4 {[%clk 0:01:00]}  Bf8 {[%clk 0:00:49]} 37. Qe1 {[%clk 0:00:38]}  Bxc5 {[%clk 0:00:45]} 38. dxc5 {[%clk 0:00:38]}  Ra2 {[%clk 0:00:37]} 39. Ra1 {[%clk 0:00:37]}  Rxa1 {[%clk 0:00:27]} 40. Qxa1 {[%clk 0:00:36]}  h5 {[%clk 0:00:26]} 41. Qa8+ {[%clk 0:00:31]}  Kg7 {[%clk 0:00:26]} 42. Qb7 {[%clk 0:00:19]}  Nxe5 {[%clk 0:00:22]} 43. Qxd5 {[%clk 0:00:04]}  exd5 {[%clk 0:00:21]} 44. fxe5 {[%clk 0:00:04]}  b2 {[%clk 0:00:21]} 45. Bd4 {[%clk 0:00:04]}  b1=Q+ {[%clk 0:00:21]} 46. Kg2 {[%clk 0:00:04]}  Qe4+ {[%clk 0:00:21]} 47. Kh3 {[%clk 0:00:04]}  g5 {[%clk 0:00:19]} 48. c6 {[%clk 0:00:03]}  Qf3 {[%clk 0:00:12]} 0-1


[Site "https://www.chess.com"]

[Event "Titled Tuesday Blitz March 01 Early 2022"]
[White "Shvedova, Alexandra"]
[Black "Ooi, Zhi Yang"]
[WhiteFideId "54154782"]
[BlackFideId "5709270"]
[WhiteElo "1920"]
[BlackElo "1802"]
[Result "0-1"]
[Round "11"]
[TimeControl "180+1"]
[Date "2022.03.01"]
[WhiteClock "0:00:27"]
[BlackClock "0:00:58"]

1. e4 {[%clk 0:03:00]}  c6 {[%clk 0:02:59]} 2. d4 {[%clk 0:03:00]}  d5 {[%clk 0:02:59]} 3. e5 {[%clk 0:03:01]}  Bf5 {[%clk 0:02:59]} 4. h4 {[%clk 0:03:01]}  h5 {[%clk 0:02:58]} 5. Bd3 {[%clk 0:03:01]}  Bxd3 {[%clk 0:02:57]} 6. Qxd3 {[%clk 0:03:02]}  e6 {[%clk 0:02:57]} 7. Nf3 {[%clk 0:03:01]}  Ne7 {[%clk 0:02:55]} 8. Bg5 {[%clk 0:02:59]}  Nd7 {[%clk 0:02:55]} 9. Nbd2 {[%clk 0:02:55]}  Qb6 {[%clk 0:02:55]} 10. O-O {[%clk 0:02:54]}  c5 {[%clk 0:02:55]} 11. c3 {[%clk 0:02:39]}  Nc6 {[%clk 0:02:52]} 12. dxc5 {[%clk 0:02:35]}  Nxc5 {[%clk 0:02:52]} 13. Qc2 {[%clk 0:02:31]}  Be7 {[%clk 0:02:51]} 14. Bxe7 {[%clk 0:02:25]}  Nxe7 {[%clk 0:02:50]} 15. b4 {[%clk 0:02:25]}  Nd7 {[%clk 0:02:47]} 16. Qd3 {[%clk 0:02:16]}  Rc8 {[%clk 0:02:45]} 17. Rfe1 {[%clk 0:02:13]}  O-O {[%clk 0:02:40]} 18. Ng5 {[%clk 0:02:09]}  Nf5 {[%clk 0:02:38]} 19. Ndf3 {[%clk 0:02:05]}  Rc6 {[%clk 0:02:34]} 20. Nd4 {[%clk 0:02:02]}  g6 {[%clk 0:02:21]} 21. Nxc6 {[%clk 0:02:01]}  Qxc6 {[%clk 0:02:14]} 22. Nf3 {[%clk 0:01:58]}  Rc8 {[%clk 0:02:13]} 23. Rac1 {[%clk 0:01:56]}  Qa4 {[%clk 0:02:13]} 24. Nd4 {[%clk 0:01:44]}  Nxh4 {[%clk 0:01:59]} 25. Qg3 {[%clk 0:01:37]}  Nf5 {[%clk 0:01:51]} 26. Nxf5 {[%clk 0:01:38]}  exf5 {[%clk 0:01:52]} 27. e6 {[%clk 0:01:38]}  Nf6 {[%clk 0:01:47]} 28. exf7+ {[%clk 0:01:37]}  Kxf7 {[%clk 0:01:46]} 29. Qe5 {[%clk 0:01:31]}  Qd7 {[%clk 0:01:39]} 30. f3 {[%clk 0:01:23]}  h4 {[%clk 0:01:33]} 31. Qd4 {[%clk 0:01:14]}  h3 {[%clk 0:01:30]} 32. gxh3 {[%clk 0:01:13]}  Rc4 {[%clk 0:01:27]} 33. Qxa7 {[%clk 0:01:09]}  Rh4 {[%clk 0:01:27]} 34. Kh2 {[%clk 0:00:45]}  Qc7+ {[%clk 0:01:25]} 35. Kg2 {[%clk 0:00:41]}  Nh5 {[%clk 0:01:25]} 36. Qc5 {[%clk 0:00:32]}  Qg3+ {[%clk 0:01:23]} 37. Kf1 {[%clk 0:00:31]}  Qxf3+ {[%clk 0:01:22]} 38. Kg1 {[%clk 0:00:28]}  Qg3+ {[%clk 0:01:23]} 39. Kf1 {[%clk 0:00:27]}  Rf4+ {[%clk 0:01:22]} 40. Ke2 {[%clk 0:00:27]}  Re4+ {[%clk 0:01:19]} 41. Kd2 {[%clk 0:00:26]}  Qg2+ {[%clk 0:01:03]} 42. Kd3 {[%clk 0:00:27]}  Nf4# {[%clk 0:00:58]} 0-1


[Site "https://www.chess.com"]

[Event "Titled Tuesday Blitz March 01 Early 2022"]
[White "Sikorova, Olga"]
[Black "Manelyuk, Daniil"]
[WhiteFideId "307033"]
[BlackFideId "44173920"]
[WhiteElo "2187"]
[BlackElo "2222"]
[Result "0-1"]
[Round "11"]
[TimeControl "180+1"]
[Date "2022.03.01"]
[WhiteClock "0:00:17"]
[BlackClock "0:00:32"]

1. c4 {[%clk 0:03:00]}  Nf6 {[%clk 0:02:58]} 2. g3 {[%clk 0:03:01]}  e6 {[%clk 0:02:57]} 3. Bg2 {[%clk 0:03:01]}  d5 {[%clk 0:02:57]} 4. Nf3 {[%clk 0:03:00]}  Be7 {[%clk 0:02:57]} 5. b3 {[%clk 0:03:00]}  O-O {[%clk 0:02:57]} 6. Bb2 {[%clk 0:03:00]}  c5 {[%clk 0:02:58]} 7. O-O {[%clk 0:03:00]}  d4 {[%clk 0:02:57]} 8. e3 {[%clk 0:03:00]}  Nc6 {[%clk 0:02:54]} 9. exd4 {[%clk 0:03:00]}  cxd4 {[%clk 0:02:55]} 10. Re1 {[%clk 0:03:00]}  Qd6 {[%clk 0:02:44]} 11. a3 {[%clk 0:02:58]}  e5 {[%clk 0:02:41]} 12. d3 {[%clk 0:02:58]}  Bg4 {[%clk 0:02:40]} 13. h3 {[%clk 0:02:57]}  Bh5 {[%clk 0:02:40]} 14. Nbd2 {[%clk 0:02:52]}  Nd7 {[%clk 0:02:36]} 15. b4 {[%clk 0:02:49]}  f5 {[%clk 0:02:30]} 16. c5 {[%clk 0:02:49]}  Qg6 {[%clk 0:02:19]} 17. Qb3+ {[%clk 0:02:42]}  Kh8 {[%clk 0:02:17]} 18. b5 {[%clk 0:02:35]}  Na5 {[%clk 0:02:17]} 19. Qd5 {[%clk 0:02:35]}  Rad8 {[%clk 0:01:35]} 20. c6 {[%clk 0:02:34]}  Nb6 {[%clk 0:01:28]} 21. Qxe5 {[%clk 0:02:33]}  Bf6 {[%clk 0:01:28]} 22. Qc5 {[%clk 0:02:16]}  Bxf3 {[%clk 0:01:27]} 23. Nxf3 {[%clk 0:02:15]}  Nb3 {[%clk 0:01:26]} 24. Qb4 {[%clk 0:01:56]}  Nxa1 {[%clk 0:01:24]} 25. Bxa1 {[%clk 0:01:56]}  Nd5 {[%clk 0:01:23]} 26. Qa5 {[%clk 0:01:53]}  b6 {[%clk 0:01:18]} 27. Qxa7 {[%clk 0:01:32]}  Ra8 {[%clk 0:01:17]} 28. Qd7 {[%clk 0:01:31]}  Rfd8 {[%clk 0:01:14]} 29. Qe6 {[%clk 0:01:26]}  Nc7 {[%clk 0:01:09]} 30. Qe2 {[%clk 0:01:17]}  Nxb5 {[%clk 0:01:03]} 31. Ne5 {[%clk 0:01:12]}  Bxe5 {[%clk 0:00:56]} 32. Qxe5 {[%clk 0:01:12]}  Re8 {[%clk 0:00:56]} 33. Qxb5 {[%clk 0:00:35]}  Rxe1+ {[%clk 0:00:55]} 34. Kh2 {[%clk 0:00:36]}  Rxa1 {[%clk 0:00:51]} 35. Qxb6 {[%clk 0:00:19]}  f4 {[%clk 0:00:35]} 36. c7 {[%clk 0:00:17]}  fxg3+ {[%clk 0:00:32]} 37. fxg3 {[%clk 0:00:17]}  Qxb6 {[%clk 0:00:32]} 0-1


[Site "https://www.chess.com"]

[Event "Titled Tuesday Blitz March 01 Early 2022"]
[White "Silva, Miguel Antonio Neto"]
[Black "Weetik, Vjacheslav"]
[WhiteFideId "1911929"]
[BlackFideId "4153472"]
[WhiteElo "2204"]
[BlackElo "2469"]
[Result "1-0"]
[Round "11"]
[TimeControl "180+1"]
[Date "2022.03.01"]
[WhiteClock "0:00:30"]
[BlackClock "0:00:01"]

1. e4 {[%clk 0:02:59]}  c6 {[%clk 0:02:59]} 2. d4 {[%clk 0:02:57]}  d5 {[%clk 0:02:59]} 3. e5 {[%clk 0:02:56]}  Bf5 {[%clk 0:02:59]} 4. h4 {[%clk 0:02:55]}  Qb6 {[%clk 0:02:59]} 5. g4 {[%clk 0:02:49]}  Bd7 {[%clk 0:02:58]} 6. Nc3 {[%clk 0:02:46]}  h5 {[%clk 0:02:57]} 7. gxh5 {[%clk 0:02:44]}  Bf5 {[%clk 0:02:53]} 8. Nge2 {[%clk 0:02:41]}  Bg4 {[%clk 0:02:35]} 9. Qd3 {[%clk 0:02:35]}  e6 {[%clk 0:02:31]} 10. Bh3 {[%clk 0:02:29]}  Bxh5 {[%clk 0:02:28]} 11. Nf4 {[%clk 0:02:23]}  Ne7 {[%clk 0:02:13]} 12. Nxh5 {[%clk 0:02:19]}  Rxh5 {[%clk 0:02:12]} 13. Bg5 {[%clk 0:02:20]}  Nd7 {[%clk 0:01:40]} 14. O-O-O {[%clk 0:02:18]}  O-O-O {[%clk 0:01:37]} 15. Qf3 {[%clk 0:02:16]}  Rxg5 {[%clk 0:00:32]} 16. hxg5 {[%clk 0:02:13]}  c5 {[%clk 0:00:28]} 17. Qxf7 {[%clk 0:02:09]}  cxd4 {[%clk 0:00:28]} 18. Ne2 {[%clk 0:02:03]}  Nxe5 {[%clk 0:00:25]} 19. Qxe6+ {[%clk 0:02:00]}  Qxe6 {[%clk 0:00:24]} 20. Bxe6+ {[%clk 0:02:00]}  Kb8 {[%clk 0:00:24]} 21. Nxd4 {[%clk 0:01:56]}  N7g6 {[%clk 0:00:24]} 22. Bf5 {[%clk 0:01:50]}  Nf4 {[%clk 0:00:23]} 23. Rh8 {[%clk 0:01:42]}  Kc7 {[%clk 0:00:19]} 24. Ne6+ {[%clk 0:01:38]}  Nxe6 {[%clk 0:00:19]} 25. Bxe6 {[%clk 0:01:38]}  d4 {[%clk 0:00:19]} 26. f4 {[%clk 0:01:36]}  Ng6 {[%clk 0:00:19]} 27. Rh2 {[%clk 0:01:21]}  Nxf4 {[%clk 0:00:19]} 28. Bf5 {[%clk 0:01:19]}  Be7 {[%clk 0:00:13]} 29. Rh7 {[%clk 0:01:17]}  Rd5 {[%clk 0:00:08]} 30. Rxg7 {[%clk 0:01:11]}  Kd6 {[%clk 0:00:07]} 31. Be4 {[%clk 0:01:07]}  Rxg5 {[%clk 0:00:07]} 32. Rxg5 {[%clk 0:01:05]}  Bxg5 {[%clk 0:00:06]} 33. Bxb7 {[%clk 0:01:03]}  Kc5 {[%clk 0:00:03]} 34. Kb1 {[%clk 0:01:01]}  Ne6 {[%clk 0:00:03]} 35. a3 {[%clk 0:00:59]}  a5 {[%clk 0:00:03]} 36. Re1 {[%clk 0:00:56]}  Be3 {[%clk 0:00:03]} 37. Rh1 {[%clk 0:00:54]}  Ng5 {[%clk 0:00:02]} 38. Bg2 {[%clk 0:00:49]}  Kd6 {[%clk 0:00:01]} 39. Ka2 {[%clk 0:00:49]}  Kc5 {[%clk 0:00:02]} 40. Kb3 {[%clk 0:00:49]}  Ne6 {[%clk 0:00:02]} 41. Rh5+ {[%clk 0:00:45]}  Kb6 {[%clk 0:00:02]} 42. Kc4 {[%clk 0:00:41]}  Nf4 {[%clk 0:00:02]} 43. Rb5+ {[%clk 0:00:40]}  Kc7 {[%clk 0:00:02]} 44. Be4 {[%clk 0:00:39]}  a4 {[%clk 0:00:02]} 45. Ra5 {[%clk 0:00:38]}  Kd6 {[%clk 0:00:01]} 46. b4 {[%clk 0:00:35]}  Bc1 {[%clk 0:00:02]} 47. Rxa4 {[%clk 0:00:33]}  Ke5 {[%clk 0:00:02]} 48. Bd3 {[%clk 0:00:33]}  Ng2 {[%clk 0:00:01]} 49. Ra5+ {[%clk 0:00:33]}  Kf4 {[%clk 0:00:02]} 50. Kxd4 {[%clk 0:00:33]}  Bb2+ {[%clk 0:00:01]} 51. Kc4 {[%clk 0:00:33]}  Ne3+ {[%clk 0:00:02]} 52. Kb3 {[%clk 0:00:33]}  Bc1 {[%clk 0:00:02]} 53. a4 {[%clk 0:00:33]}  Nd1 {[%clk 0:00:01]} 54. Rf5+ {[%clk 0:00:31]}  Ke3 {[%clk 0:00:01]} 55. b5 {[%clk 0:00:31]}  Kd2 {[%clk 0:00:01]} 56. b6 {[%clk 0:00:31]}  Ne3 {[%clk 0:00:01]} 57. Rf2+ {[%clk 0:00:30]} 1-0


[Site "https://www.chess.com"]